bitfinex-derivatives/quotes_BTCF0:USTF0_20241010
["timestamp","ask_amount","ask_price","bid_price","bid_amount"]
[1728590870037,0.39129664,59907.0,59906.0,0.085543]
[1728590873636,0.39129664,59907.0,59906.0,0.002]
[1728590874326,0.39129664,59907.0,59906.0,0.05122259]
[1728590874726,0.39129664,59907.0,59906.0,0.002]
[1728590875529,0.39129664,59907.0,59906.0,0.085543]
[1728590875838,0.3608,59915.0,59906.0,0.085543]
[1728590876037,0.3608,59915.0,59907.0,0.0404]
[1728590876233,0.19,59911.0,59907.0,0.0404]
[1728590877830,0.19,59911.0,59907.0,0.0414]
[1728590878238,0.19,59911.0,59907.0,0.0424]
[1728590879136,0.39068328,59915.0,59907.0,0.002]
[1728590879451,0.27354,59908.0,59907.0,0.002]
[1728590880232,0.27354,59908.0,59894.0,0.04130428]
[1728590880233,1.29076,59908.0,59894.0,0.00250428]
[1728590880431,1.29076,59908.0,59885.0,0.083572]
[1728590880432,0.083558,59895.0,59885.0,0.083572]
[1728590880632,0.19,59886.0,59882.0,0.0394]
[1728590881143,0.19,59886.0,59885.0,0.083572]
[1728590882345,0.19,59886.0,59885.0,0.001]
[1728590882744,0.19,59886.0,59885.0,0.084572]
[1728590882946,0.3608,59891.0,59886.0,0.083571]
[1728590883143,0.3608,59891.0,59886.0,0.1328123]
[1728590883342,0.5508,59891.0,59887.0,0.083568]
[1728590883535,0.19,59891.0,59887.0,0.083568]
[1728590883735,0.19,59891.0,59887.0,0.1328093]
[1728590884140,0.21982442,59891.0,59888.0,0.0492413]
[1728590884442,0.21982442,59891.0,59888.0,0.0492013]
[1728590885043,0.22082442,59891.0,59888.0,0.0492013]
[1728590885239,0.22082442,59891.0,59888.0,0.0502013]
[1728590885643,0.03082442,59891.0,59890.0,0.19]
[1728590885840,0.02948721,59897.0,59890.0,1.05172]
[1728590886140,0.00250479,59898.0,59897.0,0.083555]
[1728590886640,0.00250479,59898.0,59897.0,0.624295]
[1728590887246,0.00250479,59898.0,59897.0,0.123455]
[1728590887935,0.0325249,59898.0,59897.0,0.123455]
[1728590888336,0.0325249,59898.0,59897.0,0.124455]
[1728590889038,0.444343,59906.0,59897.0,0.124455]
[1728590889039,0.3608,59906.0,59897.0,0.10753728]
[1728590889243,0.19,59908.0,59900.0,0.08355]
[1728590889936,0.03062527,59909.0,59901.0,0.3608]
[1728590890136,0.19,59911.0,59905.0,0.083544]
[1728590890335,0.19,59911.0,59902.0,0.0417]
[1728590890561,0.0827,59915.0,59906.0,0.083543]
[1728590890845,0.19,59913.0,59907.0,0.444341]
[1728590891050,0.07058387,59915.0,59908.0,0.0389]
[1728590891260,0.02938387,59915.0,59911.0,0.083536]
[1728590891450,0.19,59916.0,59911.0,0.083536]
[1728590891640,0.19,59912.0,59908.0,0.0389]
[1728590891946,0.19,59912.0,59911.0,0.083536]
[1728590893783,0.19,59912.0,59911.0,0.084536]
[1728590894051,0.19,59912.0,59911.0,0.085536]
[1728590894751,0.3608,59918.0,59911.0,0.002]
[1728590894952,0.19,59912.0,59911.0,0.002]
[1728590896350,0.19,59912.0,59911.0,0.085536]
[1728590896753,0.19,59912.0,59911.0,0.002]
[1728590897357,0.19,59912.0,59911.0,0.085536]
[1728590898454,0.03335388,59919.0,59911.0,0.085536]
[1728590898655,0.19,59913.0,59911.0,0.085536]
[1728590898851,0.19,59913.0,59912.0,0.3608]
[1728590899957,0.19,59913.0,59911.0,0.001]
[1728590900152,0.19,59913.0,59911.0,0.002]
[1728590900654,0.19,59913.0,59911.0,0.001]
[1728590900859,0.19,59913.0,59912.0,0.002]
[1728590901242,0.19,59913.0,59912.0,0.001]
[1728590901660,0.19,59913.0,59911.0,0.002]
[1728590903052,0.21992821,59913.0,59911.0,0.002]
[1728590903257,0.21992821,59913.0,59912.0,0.001]
[1728590903589,0.21992821,59913.0,59912.0,0.002]
[1728590904059,0.21992821,59913.0,59911.0,0.002]
[1728590904254,0.21992821,59913.0,59911.0,0.085536]
[1728590904456,0.21992821,59913.0,59911.0,0.002]
[1728590904660,0.21992821,59913.0,59912.0,0.001]
[1728590904960,0.21992821,59913.0,59912.0,0.002]
[1728590905160,0.21992821,59913.0,59912.0,0.001]
[1728590905459,0.02992821,59913.0,59912.0,0.084535]
[1728590905759,0.2006571,59919.0,59913.0,0.083532]
[1728590906161,0.2006571,59919.0,59912.0,0.3618]
[1728590906354,0.2006571,59919.0,59914.0,0.083531]
[1728590906658,0.2006571,59919.0,59913.0,0.083532]
[1728590906659,0.22325104,59919.0,59913.0,0.083532]
[1728590907261,0.22325104,59919.0,59913.0,0.084532]
[1728590907460,0.22325104,59919.0,59914.0,0.001]
[1728590907968,0.22325104,59919.0,59913.0,0.085532]
[1728590908363,0.19,59918.0,59913.0,0.085532]
[1728590908557,0.03325104,59919.0,59915.0,0.083529]
[1728590908765,0.03325104,59919.0,59913.0,0.002]
[1728590908766,0.22325104,59919.0,59913.0,0.085533]
[1728590909355,0.22325104,59919.0,59915.0,0.083529]
[1728590910852,0.22325104,59919.0,59913.0,0.002]
[1728590911362,0.22325104,59919.0,59915.0,0.001]
[1728590911558,0.22325104,59919.0,59916.0,0.083529]
[1728590911754,0.22325104,59919.0,59915.0,0.002]
[1728590912565,0.22325104,59919.0,59915.0,0.06763728]
[1728590912865,0.22325104,59919.0,59917.0,0.3608]
[1728590913172,0.22325104,59919.0,59917.0,0.42643728]
[1728590913565,0.03325104,59919.0,59917.0,0.42643728]
[1728590913771,0.03325104,59919.0,59918.0,0.083526]
[1728590914862,0.03325104,59919.0,59917.0,0.3628]
[1728590915266,0.03325104,59919.0,59918.0,0.273526]
[1728590915472,0.03325104,59919.0,59918.0,0.314526]
[1728590915875,0.03325104,59919.0,59918.0,0.39669498]
[1728590916167,0.03325104,59919.0,59918.0,0.44281437]
[1728590916394,0.0389,59928.0,59918.0,0.36028837]
[1728590916562,0.0389,59928.0,59924.0,0.06566636]
[1728590916763,0.0389,59928.0,59925.0,0.06566636]
[1728590917166,0.19,59926.0,59925.0,0.06566636]
[1728590917468,0.19,59926.0,59924.0,0.06566636]
[1728590917863,0.19,59926.0,59925.0,0.06566636]
[1728590918368,0.19,59926.0,59924.0,0.06566636]
[1728590918864,0.0389,59928.0,59924.0,0.14918436]
[1728590919170,0.3997,59928.0,59926.0,0.06566442]
[1728590919377,0.0389,59928.0,59925.0,0.001]
[1728590919629,0.06869665,59928.0,59925.0,0.002]
[1728590919964,0.06869665,59928.0,59925.0,0.001]
[1728590920262,0.06869665,59928.0,59926.0,0.001]
[1728590920461,0.314514,59927.0,59926.0,0.001]
[1728590920870,0.314514,59927.0,59925.0,0.002]
[1728590921064,0.231,59927.0,59925.0,0.002]
[1728590922467,0.231,59927.0,59926.0,0.001]
[1728590922680,0.231,59927.0,59926.0,0.002]
[1728590923062,0.39059665,59928.0,59926.0,0.001]
[1728590923268,0.39059665,59928.0,59922.0,0.083521]
[1728590923269,0.39059665,59928.0,59925.0,0.002]
[1728590923669,0.39059665,59928.0,59925.0,0.001]
[1728590923872,0.39059665,59928.0,59926.0,0.001]
[1728590924168,0.02979665,59928.0,59926.0,0.002]
[1728590924374,0.3608,59927.0,59926.0,0.001]
[1728590924675,0.3608,59928.0,59926.0,0.001]
[1728590924872,0.21959129,59930.0,59926.0,0.001]
[1728590926171,0.02959129,59930.0,59927.0,0.083512]
[1728590926373,0.0382,59932.0,59927.0,0.083512]
[1728590927173,0.0382,59932.0,59927.0,0.084512]
[1728590927566,0.0382,59932.0,59927.0,0.085512]
[1728590928080,0.0382,59932.0,59927.0,0.002]
[1728590928279,0.06879104,59932.0,59927.0,0.002]
[1728590928474,0.19,59928.0,59927.0,0.002]
[1728590928674,0.19,59928.0,59927.0,0.001]
[1728590928868,0.19,59928.0,59927.0,0.002]
[1728590929271,0.25879104,59932.0,59927.0,0.002]
[1728590929478,0.25879104,59932.0,59922.0,0.63516]
[1728590929683,0.25879104,59932.0,59927.0,0.002]
[1728590930567,0.25879104,59932.0,59927.0,0.001]
[1728590930774,0.06879104,59932.0,59927.0,0.001]
[1728590930975,0.19,59929.0,59927.0,0.001]
[1728590931181,0.19,59929.0,59927.0,0.002]
[1728590933282,0.19,59929.0,59918.0,0.124525]
[1728590933283,0.444312,59928.0,59918.0,0.124525]
[1728590933581,0.444312,59928.0,59927.0,0.002]
[1728590934691,0.634312,59928.0,59927.0,0.002]
[1728590934988,0.083514,59927.0,59918.0,0.043]
[1728590935182,0.19,59924.0,59918.0,0.043]
[1728590935386,0.19,59924.0,59923.0,0.06566619]
[1728590935679,0.14821041,59924.0,59919.0,0.08208295]
[1728590935881,0.14821041,59924.0,59918.0,0.12408295]
[1728590936087,0.14821041,59924.0,59923.0,0.06568596]
[1728590936088,0.23172841,59924.0,59923.0,0.06568596]
[1728590936284,0.23172841,59924.0,59918.0,0.12408295]
[1728590936285,0.083521,59922.0,59921.0,0.04901998]
[1728590936481,0.3608,59922.0,59920.0,0.04901998]
[1728590936695,0.3608,59922.0,59918.0,0.001]
[1728590936927,0.3608,59922.0,59915.0,0.08208295]
[1728590937083,0.3608,59922.0,59916.0,0.08208295]
[1728590937579,0.3608,59922.0,59913.0,0.19]
[1728590937580,0.3608,59922.0,59914.0,0.08208295]
[1728590937784,0.0361,59923.0,59917.0,0.3608]
[1728590937992,0.0361,59923.0,59921.0,0.001]
[1728590938175,0.0361,59923.0,59921.0,0.002]
[1728590938779,0.0361,59923.0,59921.0,0.001]
[1728590939087,0.19,59924.0,59921.0,0.001]
[1728590939483,0.3608,59928.0,59921.0,0.273522]
[1728590939683,0.3608,59928.0,59921.0,0.274522]
[1728590940082,0.3608,59928.0,59921.0,0.35660495]
[1728590940282,0.39046126,59928.0,59921.0,0.16760495]
[1728590940485,0.58046126,59928.0,59921.0,0.08408295]
[1728590940789,0.58046126,59928.0,59921.0,0.08308295]
[1728590940990,0.58046126,59928.0,59921.0,0.08408295]
[1728590941795,0.58046126,59928.0,59922.0,0.20936967]
[1728590942094,0.58046126,59928.0,59923.0,0.08208295]
[1728590942393,0.58046126,59928.0,59922.0,0.0372]
[1728590942992,0.58046126,59928.0,59922.0,0.0382]
[1728590943689,0.39046126,59928.0,59922.0,0.0382]
[1728590943888,0.39046126,59928.0,59923.0,0.121218]
[1728590944091,0.02966126,59928.0,59925.0,0.083516]
[1728590944297,0.19,59931.0,59927.0,0.08208295]
[1728590944596,0.19,59931.0,59928.0,0.0373]
[1728590945096,0.3608,59929.0,59928.0,0.0373]
[1728590945994,0.3608,59929.0,59928.0,0.001]
[1728590946991,0.444311,59929.0,59928.0,0.001]
[1728590947186,0.3608,59929.0,59928.0,0.001]
[1728590947595,0.444311,59929.0,59928.0,0.001]
[1728590947794,0.444311,59929.0,59928.0,0.002]
[1728590948290,0.3608,59929.0,59928.0,0.002]
[1728590951397,0.3608,59929.0,59928.0,0.085512]
[1728590951696,0.02958326,59931.0,59928.0,0.002]
[1728590951902,0.00250358,59936.0,59929.0,0.12151]
[1728590952201,0.00250358,59936.0,59929.0,0.038]
[1728590952396,0.00250358,59936.0,59931.0,0.083508]
[1728590952597,0.00250358,59936.0,59932.0,0.0372]
[1728590953300,0.00250358,59936.0,59932.0,0.120706]
[1728590953602,0.3608,59934.0,59932.0,0.120706]
[1728590954100,0.3608,59934.0,59932.0,0.121706]
[1728590954593,0.3608,59934.0,59932.0,0.122706]
[1728590954789,0.3608,59935.0,59932.0,0.122706]
[1728590955199,0.03246037,59936.0,59932.0,0.0392]
[1728590955594,0.03246037,59936.0,59932.0,0.122706]
[1728590956399,0.03246037,59936.0,59932.0,0.121706]
[1728590956702,0.03246037,59936.0,59932.0,0.122706]
[1728590957002,0.03246037,59936.0,59932.0,0.0392]
[1728590957200,0.03246037,59936.0,59935.0,0.083502]
[1728590957502,0.03246037,59936.0,59935.0,0.12725754]
[1728590958010,0.03246037,59936.0,59933.0,0.09865559]
[1728590958197,0.5508,59941.0,59934.0,0.12725454]
[1728590958506,0.5508,59941.0,59932.0,0.58200159]
[1728590958507,0.634294,59941.0,59937.0,0.08197753]
[1728590959002,0.083496,59940.0,59938.0,0.08197753]
[1728590959205,0.58249457,59941.0,59937.0,0.08197753]
[1728590959407,0.273498,59938.0,59937.0,0.08197753]
[1728590959715,0.273498,59938.0,59935.0,0.07381215]
[1728590959716,0.19,59938.0,59935.0,0.07381215]
[1728590959998,0.620516,59940.0,59926.0,0.45945559]
[1728590959999,0.083505,59934.0,59926.0,0.45945559]
[1728590960201,0.083505,59934.0,59927.0,0.12727237]
[1728590960202,0.19,59931.0,59927.0,0.12727237]
[1728590960514,0.19,59931.0,59928.0,0.12727237]
[1728590960708,0.19,59931.0,59929.0,0.12727237]
[1728590960912,0.3608,59934.0,59926.0,0.36164]
[1728590961203,0.3608,59934.0,59931.0,0.083508]
[1728590961414,0.3608,59934.0,59932.0,0.16656948]
[1728590961600,0.3608,59934.0,59933.0,0.12726948]
[1728590962233,0.3608,59934.0,59933.0,0.21077448]
[1728590962614,0.3608,59940.0,59933.0,0.12726948]
[1728590962809,0.001,59934.0,59933.0,0.001]
[1728590963000,0.001,59934.0,59933.0,0.12926191]
[1728590964111,0.22025457,59941.0,59933.0,0.12826191]
[1728590964411,0.001,59940.0,59934.0,0.12726191]
[1728590964601,0.001,59940.0,59933.0,0.002]
[1728590964602,0.001,59940.0,59935.0,0.12726191]
[1728590964803,0.001,59940.0,59936.0,0.12726191]
[1728590965011,0.001,59934.0,59933.0,0.002]
[1728590965304,0.083493,59942.0,59933.0,0.12925973]
[1728590965612,0.083493,59942.0,59933.0,0.002]
[1728590965919,0.001,59940.0,59935.0,0.001]
[1728590967203,0.11428562,59942.0,59932.0,0.2293]
[1728590967409,0.03079262,59942.0,59935.0,0.001]
[1728590967610,0.3608,59943.0,59935.0,0.001]
[1728590968114,0.3608,59943.0,59935.0,0.002]
[1728590968708,0.444292,59943.0,59935.0,0.002]
[1728590969016,0.444292,59943.0,59935.0,0.001]
[1728590969326,0.444292,59943.0,59936.0,0.3608]
[1728590969617,0.3608,59943.0,59936.0,0.3984]
[1728590969806,0.444291,59943.0,59936.0,0.0376]
[1728590970012,0.47506587,59943.0,59936.0,0.0376]
[1728590970607,0.47506587,59943.0,59936.0,0.0386]
[1728590970915,0.47506587,59943.0,59936.0,0.0396]
[1728590971514,0.083496,59940.0,59936.0,0.0396]
[1728590971917,0.47506587,59943.0,59936.0,0.0396]
[1728590971918,0.47650587,59943.0,59936.0,0.002]
[1728590972009,0.083494,59941.0,59936.0,0.002]
[1728590972311,0.39157487,59943.0,59936.0,0.002]
[1728590972615,0.083493,59942.0,59937.0,0.12725927]
[1728590972815,0.083493,59942.0,59936.0,0.002]
[1728590973014,0.083493,59942.0,59937.0,0.12725927]
[1728590973214,0.083493,59942.0,59938.0,0.12725843]
[1728590973415,0.083493,59942.0,59936.0,0.002]
[1728590973610,0.39157487,59943.0,59937.0,0.12725843]
[1728590973809,0.39157487,59943.0,59938.0,0.12725843]
[1728590974112,0.39157487,59943.0,59939.0,0.1272565]
[1728590974313,0.39157487,59943.0,59936.0,0.002]
[1728590974519,0.39157487,59943.0,59937.0,0.1272549]
[1728590974721,0.39157487,59943.0,59938.0,0.1272549]
[1728590975014,0.39157487,59943.0,59939.0,0.1272549]
[1728590975233,0.47506687,59943.0,59939.0,0.001]
[1728590975715,0.39157487,59943.0,59939.0,0.001]
[1728590976506,0.39157487,59943.0,59939.0,0.002]
[1728590976813,0.39157487,59943.0,59939.0,0.001]
[1728590977813,0.03077487,59943.0,59939.0,0.001]
[1728590978011,0.3608,59940.0,59939.0,0.002]
[1728590978212,0.3608,59940.0,59939.0,0.12925548]
[1728590978790,0.3608,59940.0,59939.0,0.31925548]
[1728590979622,0.0372,59945.0,59939.0,0.31925548]
[1728590979812,0.0372,59945.0,59940.0,0.12725548]
[1728590980019,0.0372,59945.0,59941.0,0.12725548]
[1728590980319,0.0372,59945.0,59939.0,0.192]
[1728590980720,0.0372,59945.0,59939.0,0.191]
[1728590980921,0.06757347,59945.0,59939.0,0.192]
[1728590982212,0.03037347,59945.0,59943.0,0.273491]
[1728590982418,0.3608,59947.0,59943.0,0.19]
[1728590982817,0.3608,59947.0,59946.0,0.273487]
[1728590983185,0.02994631,59947.0,59946.0,0.273487]
[1728590983212,0.3608,59954.0,59946.0,0.273487]
[1728590983418,0.3608,59954.0,59951.0,0.19]
[1728590983625,0.3608,59954.0,59951.0,0.27348]
[1728590983820,0.3608,59954.0,59951.0,0.19]
[1728590984921,0.39132931,59954.0,59951.0,0.19]
[1728590985136,0.39132931,59954.0,59952.0,0.083479]
[1728590986021,0.03052931,59954.0,59951.0,0.192]
[1728590986225,0.3608,59959.0,59951.0,0.192]
[1728590986521,0.3608,59959.0,59952.0,0.001]
[1728590986722,0.3608,59959.0,59952.0,0.002]
[1728590987216,0.3608,59959.0,59952.0,0.001]
[1728590987414,0.3608,59959.0,59951.0,0.191]
[1728590987415,0.3608,59959.0,59951.0,0.192]
[1728590987913,0.3608,59959.0,59952.0,0.12722645]
[1728590988117,0.0378,59961.0,59954.0,0.19]
[1728590988322,0.0378,59961.0,59955.0,0.083474]
[1728590988528,0.3608,59964.0,59957.0,0.19]
[1728590988835,0.39077893,59964.0,59960.0,0.19]
[1728590989223,0.39077893,59964.0,59958.0,0.0359]
[1728590989224,0.58077893,59964.0,59958.0,0.0359]
[1728590989417,0.19,59961.0,59958.0,0.0359]
[1728590989816,0.19,59961.0,59960.0,0.001]
[1728590990519,0.19,59961.0,59958.0,0.0379]
[1728590990715,0.19,59961.0,59958.0,0.12137]
[1728590990918,0.39077893,59964.0,59958.0,0.12137]
[1728590991327,0.39077893,59964.0,59958.0,0.0379]
[1728590992136,0.39077893,59964.0,59960.0,0.002]
[1728590992412,0.19,59962.0,59960.0,0.002]
[1728590992812,0.19,59962.0,59958.0,0.0359]
[1728590993028,0.19,59962.0,59958.0,0.0379]
[1728590993229,0.39077893,59964.0,59958.0,0.0379]
[1728590993430,0.39077893,59964.0,59958.0,0.0369]
[1728590993431,0.19,59960.0,59958.0,0.0369]
[1728590993618,0.19,59963.0,59960.0,0.001]
[1728590994429,0.19,59963.0,59960.0,0.084468]
[1728590994926,0.19,59963.0,59960.0,0.001]
[1728590995330,0.19,59963.0,59958.0,0.12037]
[1728590995535,0.19,59963.0,59959.0,0.083468]
[1728590995731,0.19,59963.0,59961.0,0.083465]
[1728590996032,0.19,59963.0,59959.0,0.083469]
[1728590996218,0.19,59963.0,59960.0,0.002]
[1728590997819,0.19,59963.0,59961.0,0.001]
[1728590998933,0.19,59963.0,59961.0,0.002]
[1728590999120,0.02997893,59964.0,59961.0,0.002]
[1728590999320,0.19,59964.0,59961.0,0.002]
[1728591001330,0.19,59964.0,59962.0,0.083464]
[1728591001531,0.19,59964.0,59961.0,0.002]
[1728591002437,0.19,59964.0,59958.0,0.0359]
[1728591002438,0.19,59964.0,59962.0,0.001]
[1728591002639,0.19,59964.0,59962.0,0.002]
[1728591003134,0.19,59964.0,59962.0,0.001]
[1728591004027,0.3608,59967.0,59962.0,0.001]
[1728591004259,0.00148,59976.0,59968.0,0.083457]
[1728591004466,0.083444,59978.0,59972.0,0.04900453]
[1728591004630,0.03850183,59979.0,59971.0,0.04900453]
[1728591004838,0.19,59974.0,59971.0,0.04900453]
[1728591005129,0.19,59974.0,59969.0,0.04996453]
[1728591005319,0.3608,59976.0,59969.0,0.00096]
[1728591005320,0.19,59970.0,59969.0,0.00096]
[1728591005524,0.19,59970.0,59967.0,0.04900453]
[1728591005720,0.036,59969.0,59967.0,0.04900453]
[1728591005922,0.19,59968.0,59964.0,0.04900453]
[1728591006120,0.5508,59965.0,59962.0,0.001]
[1728591006929,0.5508,59965.0,59960.0,0.0515055]
[1728591007575,0.5508,59965.0,59960.0,0.00250097]
[1728591007727,0.5508,59965.0,59962.0,0.001]
[1728591008229,0.5508,59965.0,59960.0,0.0525055]
[1728591008629,0.5508,59965.0,59961.0,0.04900453]
[1728591008832,0.3608,59965.0,59962.0,0.001]
[1728591009033,0.3905343,59965.0,59962.0,0.001]
[1728591009230,0.3905343,59965.0,59963.0,0.04900453]
[1728591009533,0.3905343,59965.0,59962.0,0.05000453]
[1728591009735,0.083463,59963.0,59961.0,0.00662947]
[1728591009934,0.038,59962.0,59955.0,0.06533937]
[1728591010231,0.038,59962.0,59948.0,0.444284]
[1728591010232,0.19,59958.0,59953.0,0.06533937]
[1728591010429,0.19,59954.0,59952.0,0.06533937]
[1728591010739,0.634277,59953.0,59952.0,0.06549174]
[1728591011323,0.634277,59953.0,59948.0,0.44262281]
[1728591011523,0.19,59953.0,59948.0,0.44262281]
[1728591011730,0.19,59949.0,59948.0,0.44268795]
[1728591012136,0.19,59949.0,59948.0,0.3608]
[1728591012337,0.19,59949.0,59948.0,0.56995285]
[1728591012641,0.19,59949.0,59948.0,0.56995365]
[1728591012642,0.31934539,59949.0,59948.0,0.56995365]
[1728591012825,0.81978539,59949.0,59948.0,0.3608]
[1728591013031,0.083487,59946.0,59942.0,0.08192564]
[1728591013243,0.083486,59947.0,59940.0,0.08192564]
[1728591013244,0.19,59943.0,59940.0,0.08192564]
[1728591013531,0.19,59943.0,59938.0,0.08192564]
[1728591013741,0.273491,59943.0,59937.0,0.08192564]
[1728591013928,0.083496,59940.0,59939.0,0.08442748]
[1728591014133,0.083496,59940.0,59939.0,0.00250184]
[1728591014334,0.584016,59940.0,59939.0,0.00250184]
[1728591014834,0.584016,59940.0,59939.0,0.06803321]
[1728591015037,0.584016,59940.0,59938.0,0.06553137]
[1728591015239,0.2273,59939.0,59937.0,0.06553137]
[1728591015428,0.2273,59939.0,59936.0,0.06553137]
[1728591015429,0.083498,59938.0,59936.0,0.06553137]
[1728591015634,0.083498,59938.0,59937.0,0.06553137]
[1728591016142,1.184018,59938.0,59937.0,0.05836381]
[1728591016336,1.184018,59938.0,59937.0,0.001]
[1728591016826,1.10052,59938.0,59937.0,0.001]
[1728591017139,0.36720314,59951.0,59938.0,0.083498]
[1728591017341,0.36330314,59951.0,59946.0,0.273486]
[1728591017539,0.39317411,59951.0,59946.0,0.19]
[1728591018039,0.39317411,59951.0,59945.0,0.083487]
[1728591018432,0.39417411,59951.0,59946.0,0.001]
[1728591018643,0.39167097,59951.0,59946.0,0.001]
[1728591018848,0.39167097,59951.0,59946.0,0.002]
[1728591018849,0.39267097,59951.0,59946.0,0.002]
[1728591019041,0.03187097,59951.0,59950.0,0.5508]
[1728591019342,0.03187097,59951.0,59950.0,0.634282]
[1728591019533,0.03187097,59951.0,59950.0,0.634202]
[1728591020138,0.03187097,59951.0,59950.0,0.3608]
[1728591020735,0.03187097,59951.0,59950.0,0.3618]
[1728591020931,0.03087097,59951.0,59950.0,0.3618]
[1728591021327,0.03087097,59951.0,59950.0,0.3628]
[1728591021894,0.02987097,59951.0,59950.0,0.3618]
[1728591021940,0.001,59951.0,59950.0,0.3628]
[1728591022229,0.08448,59951.0,59950.0,0.002]
[1728591022431,0.08448,59951.0,59950.0,0.001]
[1728591022630,0.08448,59951.0,59950.0,0.002]
[1728591023336,0.08348,59951.0,59944.0,0.3608]
[1728591023539,0.08349,59944.0,59938.0,0.0025024]
[1728591023745,0.19,59941.0,59938.0,0.0025024]
[1728591024645,0.19,59941.0,59938.0,0.0035024]
[1728591024842,0.19,59941.0,59938.0,0.0045024]
[1728591026343,0.273494,59941.0,59938.0,0.0045024]
[1728591026548,0.083497,59939.0,59938.0,0.0035024]
[1728591026843,0.19,59941.0,59937.0,0.3608]
[1728591026844,0.083498,59938.0,59937.0,0.3608]
[1728591027047,0.121498,59938.0,59937.0,0.3608]
[1728591027244,0.192,59941.0,59937.0,0.3608]
[1728591027549,0.03243066,59941.0,59937.0,0.3608]
[1728591027924,0.005,59939.0,59938.0,0.002]
[1728591028439,0.005,59939.0,59938.0,0.001]
[1728591028642,0.22543066,59941.0,59937.0,0.3628]
[1728591028963,0.195,59941.0,59937.0,0.3628]
[1728591029948,0.193,59941.0,59937.0,0.3618]
[1728591030146,0.002,59939.0,59938.0,0.001]
[1728591030450,0.006,59939.0,59938.0,0.085498]
[1728591030749,0.006,59939.0,59938.0,0.084498]
[1728591030750,0.004,59939.0,59938.0,0.084498]
[1728591030946,0.03749683,59941.0,59937.0,0.3628]
[1728591031143,0.03749683,59941.0,59937.0,0.446299]
[1728591031343,0.03749683,59941.0,59937.0,0.3628]
[1728591031549,0.004,59939.0,59938.0,0.001]
[1728591031745,0.007,59939.0,59938.0,0.002]
[1728591033046,0.007,59939.0,59937.0,0.3608]
[1728591033047,0.03349683,59941.0,59937.0,0.3618]
[1728591033354,0.03549683,59941.0,59937.0,0.3628]
[1728591033746,0.003,59939.0,59938.0,0.001]
[1728591034055,0.005,59939.0,59938.0,0.002]
[1728591034349,0.002,59939.0,59938.0,0.001]
[1728591034744,0.03549683,59941.0,59937.0,0.3628]
[1728591035048,0.003,59939.0,59938.0,0.001]
[1728591036142,0.005,59939.0,59938.0,0.002]
[1728591036342,0.005,59939.0,59938.0,0.275498]
[1728591036547,0.002,59939.0,59938.0,0.274498]
[1728591037049,0.005,59939.0,59938.0,0.275498]
[1728591037257,0.005,59939.0,59938.0,0.002]
[1728591039513,0.088497,59939.0,59938.0,0.002]
[1728591039653,0.083494,59941.0,59938.0,0.002]
[1728591039952,0.083494,59941.0,59939.0,0.20930122]
[1728591040154,0.083494,59941.0,59939.0,0.08204961]
[1728591040346,0.083494,59941.0,59940.0,0.08204961]
[1728591040651,0.086494,59941.0,59940.0,0.08204961]
[1728591040957,0.086494,59941.0,59940.0,0.20930114]
[1728591041350,1.188974,59941.0,59940.0,0.0698515]
[1728591041653,0.083496,59940.0,59939.0,0.001]
[1728591041843,0.121896,59940.0,59939.0,0.001]
[1728591042746,0.083498,59938.0,59937.0,0.3608]
[1728591043058,0.083498,59938.0,59937.0,0.48805561]
[1728591044056,0.083498,59938.0,59937.0,0.48905561]
[1728591044250,0.083498,59938.0,59937.0,0.12825997]
[1728591044653,0.19,59939.0,59937.0,0.12825997]
[1728591044954,0.19,59939.0,59938.0,0.12725997]
[1728591045153,0.083496,59940.0,59938.0,0.12725997]
[1728591045357,0.083497,59939.0,59937.0,0.001]
[1728591045555,0.273497,59939.0,59938.0,0.12725505]
[1728591046154,0.273497,59939.0,59938.0,0.12825505]
[1728591047660,0.273497,59939.0,59938.0,0.001]
[1728591048860,0.273497,59939.0,59938.0,0.002]
[1728591052865,0.19,59939.0,59938.0,0.002]
[1728591053570,0.19,59942.0,59938.0,0.002]
[1728591054066,0.273493,59942.0,59938.0,0.002]
[1728591054567,0.083497,59939.0,59938.0,0.002]
[1728591054766,0.083497,59939.0,59938.0,0.12925068]
[1728591055567,0.273497,59939.0,59938.0,0.12925068]
[1728591056969,0.19,59939.0,59938.0,0.12925068]
[1728591058081,0.19,59939.0,59938.0,0.12925063]
[1728591059567,0.19,59939.0,59938.0,0.12925414]
[1728591059970,0.19,59939.0,59934.0,0.09865559]
[1728591059971,1.29052,59939.0,59934.0,0.09865559]
[1728591060187,0.083511,59929.0,59926.0,0.0357]
[1728591060367,0.19,59929.0,59926.0,0.0357]
[1728591060878,0.273511,59929.0,59926.0,0.0357]
[1728591062498,0.19,59929.0,59926.0,0.0357]
[1728591062667,0.19,59937.0,59930.0,0.083508]
[1728591062883,0.19,59937.0,59926.0,0.0357]
[1728591062884,0.19,59937.0,59931.0,0.444307]
[1728591063366,0.19,59937.0,59928.0,0.00301162]
[1728591063771,0.19,59937.0,59930.0,0.083509]
[1728591063980,0.192,59937.0,59932.0,0.3608]
[1728591064382,0.192,59937.0,59931.0,0.001]
[1728591064575,0.192,59937.0,59932.0,0.3608]
[1728591064780,0.2755,59937.0,59928.0,0.00401162]
[1728591064988,0.3608,59936.0,59928.0,0.08752362]
[1728591065283,0.3608,59936.0,59928.0,0.08652362]
[1728591065473,0.3608,59936.0,59930.0,0.001]